bitfinex/quotes_BTCUSD_20251110
["timestamp","ask_amount","ask_price","bid_price","bid_amount"]
[1762792999929,0.25116214,105190.0,105180.0,0.19015021]
[1762793000501,0.23116214,105190.0,105170.0,0.35831607]
[1762793000704,0.23116214,105190.0,105180.0,0.19015021]
[1762793001133,0.23216214,105190.0,105170.0,0.35831607]
[1762793001338,0.25216214,105190.0,105180.0,0.19015021]
[1762793001598,0.23216214,105190.0,105170.0,0.35831607]
[1762793001779,0.19015021,105180.0,105170.0,0.35831607]
[1762793002178,0.19015021,105180.0,105170.0,0.06813698]
[1762793002433,0.19015021,105180.0,105160.0,0.40775995]
[1762793002434,0.19016829,105170.0,105160.0,0.06813698]
[1762793002664,0.19018638,105160.0,105150.0,0.06813698]
[1762793002853,0.19018638,105160.0,105140.0,0.25835954]
[1762793002854,0.58685378,105160.0,105140.0,0.25835954]
[1762793003006,0.02746,105150.0,105140.0,0.25849648]
[1762793003384,0.21766446,105150.0,105140.0,0.25849648]
[1762793003585,0.24156446,105150.0,105140.0,0.25849648]
[1762793003779,0.05136,105150.0,105140.0,0.25849648]
[1762793003989,0.02746,105150.0,105140.0,0.25849648]
[1762793004184,0.24156446,105150.0,105140.0,0.25849648]
[1762793004383,0.24156446,105150.0,105140.0,0.06827392]
[1762793004612,0.24156446,105150.0,105140.0,0.25849648]
[1762793005014,0.63225186,105150.0,105140.0,0.00013694]
[1762793005426,0.63225186,105150.0,105140.0,0.00113694]
[1762793005825,0.71564396,105150.0,105140.0,0.00013694]
[1762793006034,0.63225186,105150.0,105140.0,0.00013694]
[1762793006605,0.95525186,105150.0,105140.0,0.00013694]
[1762793007403,0.95725186,105150.0,105140.0,0.00013694]
[1762793008016,0.95825186,105150.0,105140.0,0.00013694]
[1762793008222,1.05535359,105150.0,105140.0,0.00013694]
[1762793008633,1.05635359,105150.0,105140.0,0.00013694]
[1762793008839,1.18796753,105150.0,105140.0,0.00013694]
[1762793009480,0.21771875,105120.0,105110.0,0.29012917]
[1762793009687,0.21771875,105120.0,105110.0,0.29060948]
[1762793010572,0.21771875,105120.0,105110.0,0.00248031]
[1762793010573,0.24161875,105120.0,105110.0,0.00248031]
[1762793010920,0.26161875,105120.0,105110.0,0.00248031]
[1762793011124,0.26161875,105120.0,105110.0,0.19275716]
[1762793011860,0.26161875,105120.0,105110.0,0.19075992]
[1762793012654,0.26161875,105120.0,105110.0,0.19275992]
[1762793012861,0.26161875,105120.0,105110.0,0.19227685]
[1762793013154,0.26161875,105120.0,105110.0,0.19127685]
[1762793013554,0.24161875,105120.0,105110.0,0.19227685]
[1762793013695,0.05136,105120.0,105110.0,0.19227685]
[1762793014731,0.24161875,105120.0,105110.0,0.19227685]
[1762793015271,0.24161875,105120.0,105110.0,0.00223708]
[1762793015482,0.3068062,105120.0,105110.0,0.00223708]
[1762793015947,0.26161875,105120.0,105110.0,0.00223708]
[1762793016735,0.76392009,105120.0,105110.0,0.00223708]
[1762793016944,0.19031306,105090.0,105080.0,0.0002]
[1762793017149,0.7639744,105090.0,105080.0,0.00034387]
[1762793017355,0.82130555,105090.0,105080.0,0.00034387]
[1762793018450,1.28099418,105090.0,105080.0,3.87e-06]
[1762793019660,1.28399418,105090.0,105080.0,3.87e-06]
[1762793019859,1.28799418,105090.0,105080.0,3.87e-06]
[1762793020503,1.28399418,105090.0,105080.0,3.87e-06]
[1762793020921,1.28899418,105090.0,105080.0,3.87e-06]
[1762793021822,0.53334929,105070.0,105060.0,0.0002]
[1762793022159,1.03566874,105060.0,105050.0,0.0002]
[1762793022391,1.09322109,105060.0,105050.0,0.00034412]
[1762793023266,1.11940336,105060.0,105050.0,0.00034412]
[1762793023480,1.14140336,105060.0,105050.0,0.00034412]
[1762793023905,1.14440336,105060.0,105050.0,0.00034412]
[1762793024116,1.24250509,105060.0,105050.0,0.00034412]
[1762793024535,1.23950509,105060.0,105050.0,0.00034412]
[1762793024778,1.24350509,105060.0,105050.0,0.00034412]
[1762793025221,1.24150509,105060.0,105050.0,0.00034412]
[1762793025431,0.19042178,105030.0,105020.0,0.1955051]
[1762793025640,0.06513235,105030.0,105020.0,0.19564901]
[1762793025898,0.03767235,105030.0,105020.0,0.19564901]
[1762793026111,0.03148,105050.0,105040.0,0.19040365]
[1762793026318,0.08893621,105050.0,105040.0,0.19040365]
[1762793026537,0.02905621,105050.0,105040.0,0.19040365]
[1762793026739,0.01148,105050.0,105040.0,0.19040365]
[1762793027142,0.02746,105050.0,105040.0,0.19040365]
[1762793027547,0.03046,105050.0,105040.0,0.19040365]
[1762793027739,0.26474553,105050.0,105040.0,0.19040365]
[1762793027960,0.07436,105050.0,105040.0,0.19040365]
[1762793028136,0.05046,105050.0,105040.0,0.19206435]
[1762793028520,0.024,105050.0,105040.0,0.19206435]
[1762793028687,0.004,105050.0,105040.0,0.26061254]
[1762793028892,0.004,105050.0,105040.0,0.79909616]
[1762793029357,0.004,105050.0,105040.0,0.29679482]
[1762793029488,0.001,105050.0,105040.0,0.79909616]
[1762793029864,0.2103674,105060.0,105050.0,0.19038553]
[1762793030017,0.03598,105050.0,105040.0,0.19140365]
[1762793030219,0.06507189,105050.0,105040.0,0.19140365]
[1762793031313,0.25545742,105050.0,105040.0,0.19140365]
[1762793031492,0.27935742,105050.0,105040.0,0.001]
[1762793032895,0.78165876,105050.0,105040.0,0.001]
[1762793033100,0.37656007,105050.0,105040.0,0.001]
[1762793033698,1.10465876,105050.0,105040.0,0.001]
[1762793033903,0.60235742,105050.0,105040.0,0.001]
[1762793034335,0.60535742,105050.0,105040.0,0.001]
[1762793034545,0.19041733,105040.0,105020.0,0.20010529]
[1762793034771,0.25154554,105040.0,105030.0,0.19042178]
[1762793034980,0.03761189,105040.0,105030.0,0.19042178]
[1762793035184,0.24393554,105040.0,105020.0,0.70240663]
[1762793035392,0.24397227,105040.0,105030.0,0.19042178]
[1762793035802,0.26850227,105040.0,105020.0,0.20010529]
[1762793036009,0.26850227,105040.0,105030.0,0.19042178]
[1762793036431,0.26750227,105040.0,105020.0,0.20010529]
[1762793036668,0.26850227,105040.0,105030.0,0.19042178]
[1762793037335,0.05456862,105040.0,105030.0,0.19042178]
[1762793037918,0.03864862,105040.0,105030.0,0.28092814]
[1762793038142,0.03764862,105040.0,105030.0,0.28092814]
[1762793038571,0.03864862,105040.0,105030.0,0.28092814]
[1762793039123,0.01764862,105040.0,105030.0,0.28092814]
[1762793039530,0.01864862,105040.0,105030.0,0.28092814]
[1762793039863,0.01764862,105040.0,105030.0,0.28092814]
[1762793040272,0.01764862,105040.0,105030.0,0.28192814]
[1762793040590,0.01764862,105040.0,105030.0,0.28382627]
[1762793040977,0.01764862,105040.0,105030.0,0.28582627]
[1762793041173,0.22397227,105040.0,105030.0,0.09540449]
[1762793041404,0.26750227,105040.0,105030.0,0.28582627]
[1762793041832,0.05356862,105040.0,105030.0,0.28582627]
[1762793042036,0.01764862,105040.0,105030.0,0.78812761]
[1762793042776,0.01764862,105040.0,105030.0,1.14730989]
[1762793043002,0.01764862,105040.0,105030.0,1.20666079]
[1762793044095,0.02,105070.0,105060.0,0.1903674]
[1762793044277,0.22807438,105070.0,105060.0,0.1903674]
[1762793044478,0.03772509,105070.0,105060.0,0.1903674]
[1762793045457,0.03772509,105070.0,105060.0,0.28087376]
[1762793045666,0.01772509,105070.0,105060.0,0.28087376]
[1762793045879,0.01772509,105070.0,105060.0,0.28187376]
[1762793046320,0.03364509,105070.0,105060.0,0.28187376]
[1762793046534,0.03772509,105070.0,105060.0,0.28187376]
[1762793046738,0.07717509,105070.0,105060.0,0.001]
[1762793046943,0.29280129,105070.0,105060.0,0.001]
[1762793047135,0.26752438,105070.0,105060.0,0.001]
[1762793047360,0.26752438,105070.0,105060.0,0.1913674]
[1762793047566,0.26752438,105070.0,105060.0,0.001]
[1762793048399,0.26752438,105070.0,105060.0,0.1913674]
[1762793048604,0.07717509,105070.0,105060.0,0.1913674]
[1762793049195,0.26752438,105070.0,105060.0,0.1913674]
[1762793049648,0.26752438,105070.0,105060.0,0.19255339]
[1762793050017,0.26752438,105070.0,105060.0,0.00218599]
[1762793050415,0.26752438,105070.0,105060.0,0.19255339]
[1762793050629,0.26752438,105070.0,105060.0,0.00218599]
[1762793051564,0.26752438,105070.0,105060.0,0.19255339]
[1762793051783,0.07717509,105070.0,105060.0,0.19255339]
[1762793051966,0.26752438,105070.0,105060.0,0.19255339]
[1762793052291,0.26752438,105070.0,105060.0,0.00218599]
[1762793052630,0.26752438,105070.0,105060.0,0.19255339]
[1762793053286,0.03772509,105070.0,105060.0,0.19255339]
[1762793053488,0.01772509,105070.0,105060.0,0.19255339]
[1762793054060,0.03364509,105070.0,105060.0,0.19255339]
[1762793054181,0.25752438,105070.0,105060.0,0.19255339]
[1762793054387,0.04364509,105070.0,105060.0,0.19255339]
[1762793054591,0.23399438,105070.0,105060.0,0.19255339]
[1762793055022,0.25752438,105070.0,105060.0,0.00218599]
[1762793056227,0.30350894,105070.0,105060.0,0.00218599]
[1762793056429,0.80581028,105070.0,105060.0,0.00218599]
[1762793057681,0.80581028,105070.0,105060.0,0.00118599]
[1762793058105,0.30650894,105070.0,105060.0,0.00118599]
[1762793058575,0.80881028,105070.0,105060.0,0.00118599]
[1762793059229,1.13181028,105070.0,105060.0,0.00118599]
[1762793060791,0.30650894,105070.0,105060.0,0.00118599]
[1762793061491,0.02072509,105070.0,105060.0,0.19155339]
[1762793061723,0.023,105070.0,105060.0,0.19155339]
[1762793062189,0.003,105070.0,105060.0,0.19155339]
[1762793062378,0.003,105070.0,105060.0,0.69385473]
[1762793063733,0.001,105070.0,105060.0,0.69385473]
[1762793063952,0.02,105080.0,105070.0,0.19034929]
[1762793064163,0.22179307,105090.0,105080.0,0.19033117]
[1762793064589,0.26089307,105090.0,105080.0,0.19033117]
[1762793064806,0.19033117,105080.0,105070.0,0.28085565]
[1762793064995,0.02,105080.0,105070.0,0.28085565]
[1762793066548,0.03624,105080.0,105070.0,0.28085565]
[1762793067381,0.03624,105080.0,105070.0,0.42635565]
[1762793067382,0.22657117,105080.0,105070.0,0.42635565]
[1762793067587,0.03624,105080.0,105070.0,0.42735565]
[1762793067813,0.03624,105080.0,105070.0,0.42835565]
[1762793067988,0.22657117,105080.0,105070.0,0.33784929]
[1762793068187,0.23943117,105080.0,105070.0,0.33784929]
[1762793068478,0.01,105080.0,105070.0,0.42835565]
[1762793068898,0.03148,105090.0,105080.0,0.19033117]
[1762793069463,0.20226746,105110.0,105080.0,0.03618228]
[1762793069671,0.21854306,105090.0,105070.0,0.16064334]
[1762793069883,0.21230306,105090.0,105080.0,0.19033117]
[1762793070091,0.25140306,105090.0,105080.0,0.19033117]
[1762793070725,0.25140306,105090.0,105070.0,0.70817481]
[1762793070939,0.25140306,105090.0,105070.0,0.38517481]
[1762793070940,0.20657117,105080.0,105070.0,0.38517481]
[1762793071147,0.01624,105080.0,105070.0,0.38517481]
[1762793071567,0.23516306,105090.0,105080.0,0.19033117]
[1762793071955,0.25140306,105090.0,105080.0,0.19033117]
[1762793072152,0.19033117,105080.0,105070.0,0.25848627]
[1762793072486,0.02,105070.0,105060.0,0.62720503]
[1762793072686,0.03199,105070.0,105060.0,0.30420503]
[1762793073055,0.26143929,105070.0,105060.0,0.29468666]
[1762793073301,0.24143929,105070.0,105060.0,0.1903674]
[1762793073503,0.26143929,105070.0,105060.0,0.1903674]
[1762793073887,0.26143929,105070.0,105060.0,0.1923674]
[1762793074295,0.04823,105070.0,105060.0,0.1903674]
[1762793074490,0.04823,105070.0,105060.0,0.1913674]
[1762793074670,0.04823,105070.0,105060.0,0.1923674]
[1762793075127,0.23857929,105070.0,105060.0,0.1923674]
[1762793075503,0.04823,105070.0,105060.0,0.19355339]
[1762793075704,0.04823,105070.0,105060.0,0.56464417]
[1762793075916,0.02,105070.0,105060.0,0.63278115]
[1762793076115,0.02,105080.0,105070.0,0.19034929]
[1762793076314,0.23467871,105090.0,105080.0,0.19033117]
[1762793076552,0.25467871,105090.0,105080.0,0.19033117]
[1762793076738,0.27091871,105090.0,105080.0,0.19033117]
[1762793077162,0.07109,105090.0,105080.0,0.19033117]
[1762793077318,0.20230306,105090.0,105080.0,0.19033117]
[1762793077523,0.24140306,105090.0,105070.0,0.72028341]
[1762793077758,0.24240306,105090.0,105080.0,0.19033117]
[1762793077941,0.05209,105090.0,105080.0,0.19033117]
[1762793078288,0.05409,105090.0,105080.0,0.19033117]
[1762793078492,0.003,105090.0,105080.0,0.56162195]
[1762793078701,0.003,105090.0,105080.0,1.29209501]
[1762793078911,0.003,105090.0,105080.0,1.38658945]
[1762793079121,0.01,105120.0,105110.0,0.19027685]
[1762793079334,0.02199,105130.0,105120.0,0.19025875]
[1762793079554,0.23523459,105130.0,105100.0,0.63934914]
[1762793079756,0.20649875,105120.0,105110.0,0.28078321]
[1762793079966,0.01624,105120.0,105110.0,0.28078321]
[1762793080166,0.23523459,105130.0,105120.0,0.19025875]
[1762793080554,0.25147459,105130.0,105110.0,0.28078321]
[1762793080755,0.25147459,105130.0,105120.0,0.19025875]
[1762793081000,0.22861459,105130.0,105120.0,0.19025875]
[1762793081198,0.02213394,105130.0,105120.0,0.19025875]
[1762793081343,0.22237459,105130.0,105120.0,0.19025875]
[1762793081690,0.02,105120.0,105110.0,0.31696549]
[1762793082222,0.02,105120.0,105110.0,0.68825627]
[1762793082761,0.20237459,105130.0,105120.0,0.19025875]
[1762793082986,0.22237459,105130.0,105120.0,0.19025875]
[1762793083169,0.02,105120.0,105110.0,0.31696549]
[1762793083416,0.03624,105120.0,105110.0,0.31796549]
[1762793083617,0.03624,105120.0,105110.0,0.68925627]
[1762793084306,0.03624,105120.0,105110.0,0.31796549]
[1762793084751,0.02,105120.0,105110.0,0.31796549]
[1762793084970,0.21025875,105120.0,105110.0,0.68925627]
[1762793085464,0.21025875,105120.0,105110.0,0.31796549]
[1762793086421,0.21025875,105120.0,105110.0,0.31896549]
[1762793086630,0.02,105120.0,105110.0,0.31896549]
[1762793087444,0.22237699,105130.0,105120.0,0.19025875]
[1762793087720,0.24523699,105130.0,105120.0,0.19025875]
[1762793087935,0.26147699,105130.0,105120.0,0.19025875]
[1762793088144,0.19025875,105120.0,105110.0,0.002]
[1762793088350,0.59778953,105120.0,105110.0,0.002]
[1762793088542,0.24935875,105120.0,105110.0,0.002]
[1762793089084,0.19027685,105110.0,105100.0,0.0002371]
[1762793089298,0.26136685,105110.0,105100.0,0.0002371]
[1762793090003,0.26136685,105110.0,105100.0,0.19053205]
[1762793090613,0.26136685,105110.0,105100.0,0.19153205]
[1762793091038,0.26136685,105110.0,105100.0,0.0012371]
[1762793091241,0.26136685,105110.0,105100.0,0.19153205]
[1762793091696,0.26136685,105110.0,105100.0,0.0012371]
[1762793092414,0.26136685,105110.0,105100.0,0.0022371]
[1762793092617,0.07109,105110.0,105100.0,0.19253205]
[1762793092748,0.04823,105110.0,105100.0,0.19253205]
[1762793092954,0.03199,105110.0,105100.0,0.19253205]
[1762793093192,0.21424875,105120.0,105100.0,0.56382283]
[1762793093193,0.19026255,105120.0,105100.0,0.56382283]
[1762793093382,0.02,105120.0,105110.0,0.28078321]
[1762793093564,0.25587902,105130.0,105120.0,0.19025875]
[1762793093996,0.02,105120.0,105110.0,0.28078321]
[1762793095060,0.03528,105120.0,105110.0,0.28078321]
[1762793095262,0.22553875,105120.0,105110.0,0.28078321]
[1762793095838,0.21047685,105110.0,105100.0,0.0002371]
[1762793096040,0.65088227,105110.0,105100.0,0.0002371]
[1762793096945,0.27959149,105110.0,105100.0,0.0002371]
[1762793097156,0.65388227,105110.0,105100.0,0.0002371]
[1762793097375,0.748984,105110.0,105100.0,0.0002371]
[1762793097601,0.751984,105110.0,105100.0,0.0002371]
[1762793098012,1.074984,105110.0,105100.0,0.0002371]
[1762793099053,1.078984,105110.0,105100.0,0.0002371]
[1762793099796,0.19033117,105080.0,105060.0,0.35918228]
[1762793099999,0.21034929,105070.0,105060.0,0.35918228]
[1762793100407,0.1903674,105060.0,105050.0,0.74464797]
[1762793100635,0.1903674,105060.0,105050.0,0.78083025]
[1762793100833,0.1903674,105060.0,105050.0,1.15212103]
[1762793101037,0.21034929,105070.0,105060.0,0.1903674]
[1762793101235,0.21033117,105080.0,105060.0,0.56165818]
[1762793101462,0.19031306,105090.0,105070.0,1.00369881]
[1762793101674,0.19033117,105080.0,105070.0,0.44968864]
[1762793102706,0.22561117,105080.0,105070.0,0.09050636]
[1762793103412,0.22561117,105080.0,105070.0,0.09150636]
[1762793103617,0.24987117,105080.0,105070.0,0.09150636]
[1762793103773,0.70230945,105080.0,105070.0,0.001]
[1762793103974,1.02530945,105080.0,105070.0,0.001]
[1762793104186,0.19040365,105040.0,105030.0,0.09050636]
[1762793104383,0.22223365,105040.0,105030.0,0.28107205]
[1762793104752,0.21040365,105040.0,105030.0,0.60407205]
[1762793104948,0.02,105040.0,105030.0,0.60407205]
[1762793105149,0.19040365,105040.0,105030.0,0.60407205]
[1762793105356,0.22221553,105050.0,105040.0,0.19040365]
[1762793105576,0.21038553,105050.0,105030.0,0.60407205]
[1762793105806,0.21038553,105050.0,105040.0,0.19040365]
[1762793106058,0.21038553,105050.0,105030.0,0.60407205]
[1762793106228,0.21038553,105050.0,105040.0,0.19040365]
[1762793107150,0.02,105050.0,105040.0,0.19040365]
[1762793107557,0.21038553,105050.0,105040.0,0.19182719]
[1762793107705,0.02,105050.0,105040.0,0.19182719]
[1762793107905,0.21038553,105050.0,105040.0,0.19182719]
[1762793108106,0.02,105050.0,105040.0,0.19182719]
[1762793108348,0.19036829,105060.0,105050.0,0.19038553]
[1762793108547,0.21036829,105060.0,105040.0,0.19040365]
[1762793108762,0.19038553,105050.0,105040.0,0.22658014]
[1762793108962,0.21036829,105060.0,105040.0,0.22658014]
[1762793109142,0.21036829,105060.0,105050.0,0.09050636]
[1762793109561,0.21236829,105060.0,105050.0,0.09050636]
[1762793109758,0.19038553,105050.0,105040.0,0.22658593]
[1762793109958,0.22864829,105060.0,105040.0,0.22658593]
[1762793110157,0.21236829,105060.0,105050.0,0.28089189]
[1762793110480,0.19336829,105060.0,105050.0,0.28089189]
[1762793110707,0.19036829,105060.0,105050.0,0.09050636]
[1762793110909,0.20564829,105060.0,105050.0,0.09050636]
[1762793111110,0.23090829,105060.0,105050.0,0.09050636]
[1762793111508,0.02,105070.0,105060.0,0.1903674]
[1762793111666,0.21165871,105090.0,105070.0,0.19033885]
[1762793111846,0.21165871,105090.0,105080.0,0.19033117]
[1762793111847,0.23165871,105090.0,105080.0,0.19033117]
[1762793112269,0.19033117,105080.0,105070.0,0.09050636]
[1762793112471,0.19034929,105070.0,105060.0,0.1903674]
[1762793112673,0.20214457,105090.0,105070.0,0.22653157]
[1762793112874,0.22214457,105090.0,105080.0,0.09050636]
[1762793113075,0.19034929,105070.0,105060.0,0.001]
[1762793113288,0.23745929,105070.0,105060.0,0.001]
[1762793113536,0.23745929,105070.0,105050.0,0.29041116]
[1762793113735,0.1903674,105060.0,105050.0,0.61459733]
[1762793113935,0.2103674,105060.0,105050.0,0.60507806]
[1762793114490,0.2256474,105060.0,105050.0,0.32418617]
[1762793114705,0.2499074,105060.0,105050.0,0.32418617]
[1762793114910,0.29269007,105060.0,105050.0,0.00118617]
[1762793115120,0.2499074,105060.0,105050.0,0.00118617]
[1762793115299,0.2103674,105060.0,105050.0,0.00118617]
[1762793115526,0.2103674,105060.0,105050.0,0.00218617]
[1762793115677,0.2256474,105060.0,105050.0,0.00218617]
[1762793116284,0.2499074,105060.0,105050.0,0.00318617]
[1762793117275,0.68474289,105060.0,105050.0,0.00318617]
[1762793118010,0.31345211,105060.0,105050.0,0.00318617]
[1762793118212,0.68474289,105060.0,105050.0,0.00318617]
[1762793118605,0.68474289,105060.0,105050.0,0.00218617]
[1762793118948,0.68474289,105060.0,105050.0,0.00118617]
[1762793119162,0.68674289,105060.0,105050.0,0.00118617]
[1762793119362,0.68774289,105060.0,105050.0,0.00118617]
[1762793119756,0.68574289,105060.0,105050.0,0.00118617]
[1762793119951,0.2309074,105060.0,105050.0,0.00118617]
[1762793120141,0.2529074,105060.0,105050.0,0.00118617]
[1762793120579,0.2549074,105060.0,105050.0,0.00118617]
[1762793121207,0.2519074,105060.0,105050.0,0.00118617]
[1762793121846,0.70573593,105060.0,105050.0,0.00118617]
[1762793121972,0.70373593,105060.0,105050.0,0.00118617]
[1762793122168,0.70573593,105060.0,105050.0,0.00118617]
[1762793122375,0.70673593,105060.0,105050.0,0.00118617]
[1762793123873,0.2529074,105060.0,105050.0,0.00118617]
[1762793124373,0.2086474,105060.0,105050.0,0.1915717]
[1762793124581,0.2286474,105060.0,105050.0,0.1915717]
[1762793124797,0.03828,105060.0,105050.0,0.1915717]
[1762793125052,0.023,105060.0,105050.0,0.1915717]
[1762793125250,0.2133674,105060.0,105050.0,0.1915717]
[1762793125573,0.003,105060.0,105050.0,1.01255112]
[1762793126003,0.001,105060.0,105050.0,1.08081606]
[1762793126205,0.0122,105070.0,105060.0,0.1903674]
[1762793126454,0.0322,105070.0,105060.0,0.1903674]
[1762793126738,0.582951,105090.0,105070.0,0.19034929]
[1762793126953,0.02,105080.0,105070.0,0.19034929]
[1762793127154,0.0351,105080.0,105070.0,0.19034929]
[1762793127322,0.23166022,105090.0,105080.0,0.19033117]
[1762793127505,0.04134565,105090.0,105080.0,0.19033117]
[1762793127706,0.04693,105090.0,105080.0,0.19033117]
[1762793128119,0.03183,105090.0,105080.0,0.19033117]
[1762793128325,0.22214306,105090.0,105080.0,0.19033117]
[1762793128549,0.03183,105090.0,105080.0,0.19033117]
[1762793128787,0.03383,105090.0,105080.0,0.19033117]
[1762793128988,0.22414306,105090.0,105080.0,0.19033117]
[1762793129184,0.22214306,105090.0,105080.0,0.19033117]
[1762793129412,0.23724306,105090.0,105070.0,0.09050636]
[1762793129589,0.02,105080.0,105070.0,0.64003183]
[1762793130176,0.21033117,105080.0,105070.0,0.44968864]
[1762793130425,0.21033117,105080.0,105070.0,0.64003793]
[1762793130747,0.21033117,105080.0,105070.0,0.44968864]
[1762793130966,0.23961117,105080.0,105060.0,0.19988577]
[1762793131178,0.02,105070.0,105060.0,0.1903674]
[1762793131387,0.20543117,105080.0,105070.0,0.19034929]
[1762793131597,0.21452929,105070.0,105060.0,0.00094884]
[1762793131801,0.21765021,105070.0,105050.0,0.33588282]
[1762793131993,0.02,105060.0,105050.0,0.19038282]
[1762793132210,0.2054674,105060.0,105040.0,0.19989198]
[1762793132417,0.2254674,105060.0,105050.0,0.09050636]
[1762793132626,0.2496474,105060.0,105040.0,0.20003589]
[1762793132801,0.0122,105050.0,105040.0,0.55921817]
[1762793132968,0.20258553,105050.0,105040.0,0.55921817]
[1762793133170,0.23768553,105050.0,105040.0,0.00014391]
[1762793133388,0.0473,105050.0,105040.0,0.19054756]
[1762793133683,0.24674748,105060.0,105040.0,0.19054756]
[1762793133910,0.21038553,105050.0,105040.0,0.19054756]
[1762793134071,0.22548553,105050.0,105040.0,0.00014391]
[1762793134455,0.20548553,105050.0,105040.0,0.00014391]
[1762793134655,0.24966553,105050.0,105040.0,0.00014391]
[1762793135178,0.24966553,105050.0,105040.0,0.00114391]
[1762793135801,0.24966553,105050.0,105040.0,0.00014391]
[1762793136286,0.24966553,105050.0,105040.0,0.14054756]
[1762793136462,0.22548553,105050.0,105040.0,0.14054756]
[1762793136736,0.24966553,105050.0,105040.0,0.14054756]
[1762793136932,0.02,105040.0,105030.0,0.32662962]
[1762793137133,0.02014375,105040.0,105030.0,0.47212962]
[1762793137326,0.00014375,105040.0,105030.0,0.47212962]
[1762793138099,0.00014375,105040.0,105030.0,0.47312962]
[1762793138471,0.00014375,105040.0,105030.0,0.97610096]
[1762793138700,0.00014375,105040.0,105030.0,0.47312962]
[1762793139047,0.00014375,105040.0,105030.0,0.47412962]
[1762793139511,0.00014375,105040.0,105030.0,1.30010096]
[1762793141829,0.00014375,105040.0,105030.0,1.36840859]
[1762793142021,0.00014375,105040.0,105030.0,1.30010096]
[1762793142357,0.00014375,105040.0,105030.0,1.38709309]
[1762793145632,0.00014375,105040.0,105030.0,0.88412175]
[1762793146390,0.00014375,105040.0,105030.0,1.38709309]
[1762793147032,1.43e-05,105040.0,105030.0,1.40363123]
[1762793147786,1.43e-05,105040.0,105030.0,1.40263123]
[1762793147986,1.43e-05,105040.0,105030.0,1.40563123]
[1762793148390,1.43e-05,105040.0,105030.0,1.40463123]
[1762793148731,1.43e-05,105040.0,105030.0,0.90465989]
[1762793148963,1.43e-05,105040.0,105030.0,1.40763123]
[1762793149720,1.43e-05,105040.0,105030.0,0.88812175]
[1762793149921,1.43e-05,105040.0,105030.0,0.85193947]
[1762793150331,1.43e-05,105040.0,105030.0,0.74262175]
[1762793150512,1.43e-05,105040.0,105030.0,0.73962175]
[1762793151032,1.43e-05,105040.0,105030.0,0.74062175]
[1762793151202,1.43e-05,105040.0,105030.0,0.73762175]
[1762793151516,1.43e-05,105040.0,105030.0,1.15606191]
[1762793152342,1.43e-05,105040.0,105030.0,1.24139309]
[1762793152542,1.43e-05,105040.0,105030.0,1.30976678]
[1762793152750,1.43e-05,105040.0,105030.0,1.2244356]
[1762793153728,1.43e-05,105040.0,105030.0,0.72146426]
[1762793154037,0.0200143,105040.0,105030.0,0.72146426]
[1762793154238,0.0100143,105040.0,105030.0,0.72146426]
[1762793154850,1.43e-05,105040.0,105030.0,1.2244356]
[1762793155049,0.19041795,105040.0,105030.0,1.2244356]
[1762793155462,1.43e-05,105040.0,105030.0,1.2244356]
[1762793155661,0.19041795,105040.0,105030.0,0.9014356]
[1762793155875,0.20626795,105040.0,105030.0,0.39846426]
[1762793156075,0.0158643,105040.0,105030.0,0.39846426]
[1762793156290,1.43e-05,105040.0,105030.0,0.39807412]
[1762793156639,0.20626795,105040.0,105030.0,0.39807412]
[1762793157401,0.22963795,105040.0,105030.0,0.35296278]
[1762793158761,0.22963795,105040.0,105030.0,0.07203464]
[1762793159104,0.34315782,105040.0,105030.0,0.00366095]
[1762793160062,0.34315782,105040.0,105030.0,0.00266095]
[1762793160319,0.34515782,105040.0,105030.0,0.00266095]
[1762793160574,0.34515782,105040.0,105030.0,0.69605407]
[1762793160575,0.0378643,105040.0,105030.0,0.69605407]
[1762793160857,0.0220143,105040.0,105030.0,0.85393412]
[1762793161371,0.0030143,105040.0,105030.0,0.85393412]
[1762793162123,1.43e-05,105040.0,105030.0,0.35096278]
[1762793162363,1.43e-05,105040.0,105030.0,0.85393412]
[1762793162564,0.0020143,105040.0,105030.0,0.35096278]
[1762793162779,0.0020143,105040.0,105030.0,0.85393412]
[1762793163018,1.43e-05,105040.0,105030.0,0.85393412]
[1762793163425,0.19141795,105040.0,105030.0,0.35096278]
[1762793163628,0.19141795,105040.0,105030.0,0.07003464]
[1762793163629,0.25063795,105040.0,105030.0,0.07003464]
[1762793163836,0.25063795,105040.0,105030.0,0.26045642]
[1762793163837,0.29596034,105040.0,105030.0,0.26045642]
[1762793164039,0.25063795,105040.0,105030.0,0.00166095]
[1762793164891,0.24963795,105040.0,105030.0,0.00166095]
[1762793165306,0.75260929,105040.0,105030.0,0.00166095]
[1762793165519,0.24963795,105040.0,105030.0,0.00166095]
[1762793165731,0.22963795,105040.0,105030.0,0.00166095]
[1762793165934,0.22626795,105040.0,105030.0,0.19208273]
[1762793166372,0.0220143,105040.0,105030.0,0.19208273]
[1762793166577,0.0230143,105040.0,105030.0,0.19208273]
[1762793166805,0.21341795,105040.0,105030.0,0.19208273]
[1762793167008,0.22726795,105040.0,105030.0,0.00166095]
[1762793167216,0.22726795,105040.0,105030.0,0.19208273]
[1762793167426,0.22726795,105040.0,105030.0,0.00166095]
[1762793167627,0.25063795,105040.0,105030.0,0.19208273]
[1762793167833,0.24963795,105040.0,105030.0,0.00166095]
[1762793170556,0.24963795,105040.0,105030.0,0.19208273]
[1762793171379,0.21041795,105040.0,105030.0,0.19208273]
[1762793171599,0.24963795,105040.0,105030.0,0.00166095]
[1762793171827,0.24963795,105040.0,105030.0,0.19208273]
[1762793172003,0.24963795,105040.0,105030.0,0.00166095]
[1762793173137,0.29486034,105040.0,105030.0,0.00166095]
[1762793174113,0.27486034,105040.0,105030.0,0.00166095]
[1762793174317,0.29486034,105040.0,105030.0,0.00166095]
[1762793174747,0.29986034,105040.0,105030.0,0.00166095]
[1762793174986,0.80283168,105040.0,105030.0,0.00166095]
[1762793175194,1.12583168,105040.0,105030.0,0.00166095]
[1762793175403,1.14362194,105040.0,105030.0,0.00166095]
[1762793177466,1.14344094,105040.0,105030.0,0.00166095]
[1762793179029,1.12344094,105040.0,105030.0,0.00166095]
[1762793179230,1.13344094,105040.0,105030.0,0.00166095]
[1762793179639,0.21867805,105010.0,105000.0,0.0095238]
[1762793179840,0.22867805,105010.0,105000.0,0.19999893]
[1762793180228,0.22867805,105010.0,104990.0,0.86186932]
[1762793180229,0.25204805,105010.0,104990.0,0.86186932]
[1762793180434,0.01585,105000.0,104990.0,0.86186932]
[1762793180629,0.23619805,105010.0,104990.0,0.86186932]
[1762793180841,0.23619805,105010.0,105000.0,0.19147619]
[1762793181039,0.23619805,105010.0,105000.0,0.001]
[1762793181234,0.19047619,105000.0,104980.0,1.16724421]
[1762793181439,0.04822,104990.0,104980.0,0.59136191]
[1762793181677,0.03237,104990.0,104980.0,0.62802527]
[1762793181838,0.22286433,104990.0,104980.0,0.62802527]
[1762793182277,0.22582433,104990.0,104980.0,0.39185477]
[1762793182512,0.24957433,104990.0,104980.0,0.19099355]